bitfinex-derivatives/quotes_BTCF0:USTF0_20210706
["timestamp","ask_amount","ask_price","bid_price","bid_amount"]
[1625563993835,0.90755088,34199.0,34197.0,0.003]
[1625563993935,0.84855088,34199.0,34197.0,0.003]
[1625563994337,2.19042282,34199.0,34197.0,0.003]
[1625563994789,2.13142282,34199.0,34197.0,0.003]
[1625563995086,2.19042282,34199.0,34197.0,0.003]
[1625563995386,0.24057544,34198.0,34197.0,0.003]
[1625563995487,0.29957544,34198.0,34192.0,0.004]
[1625563995613,0.35857544,34198.0,34192.0,0.004]
[1625563995893,1.3440945,34197.0,34192.0,0.004]
[1625563996089,1.4620945,34197.0,34192.0,0.004]
[1625563996190,1.17759102,34193.0,34192.0,0.004]
[1625563996290,1.29559102,34193.0,34192.0,0.004]
[1625563996988,1.29559102,34193.0,34183.0,0.69228884]
[1625563997190,1.29559102,34193.0,34179.0,1.54656147]
[1625563997390,0.96230176,34180.0,34179.0,1.54656147]
[1625563997492,1.37277176,34180.0,34179.0,1.54656147]
[1625563997758,1.37277176,34180.0,34167.0,0.3499]
[1625563997759,1.37277176,34180.0,34173.0,1.54458548]
[1625563998141,1.37277176,34180.0,34170.0,1.54471857]
[1625563998543,1.37277176,34180.0,34169.0,3.51071937]
[1625563998893,1.37277176,34180.0,34169.0,1.966]
[1625563999192,1.37277176,34180.0,34169.0,2.025]
[1625563999343,0.48115088,34170.0,34169.0,2.025]
[1625563999744,0.48115088,34170.0,34169.0,1.966]
[1625564000146,0.48115088,34170.0,34169.0,2.025]
[1625564001049,0.48115088,34170.0,34169.0,1.966]
[1625564001249,0.48115088,34170.0,34169.0,2.025]
[1625564001599,0.48115088,34170.0,34169.0,1.966]
[1625564001998,0.48115088,34170.0,34169.0,2.025]
[1625564002499,0.48115088,34170.0,34169.0,1.966]
[1625564003501,0.48115088,34170.0,34169.0,2.025]
[1625564006161,0.48115088,34170.0,34169.0,3.04951446]
[1625564006260,0.48115088,34170.0,34169.0,3.10851446]
[1625564006760,0.48115088,34170.0,34169.0,3.30851446]
[1625564007511,0.48115088,34170.0,34169.0,3.10851446]
[1625564008011,0.48115088,34170.0,34169.0,3.04951446]
[1625564008113,0.48115088,34170.0,34169.0,3.10851446]
[1625564008213,0.48115088,34170.0,34169.0,2.99051446]
[1625564008313,0.48115088,34170.0,34169.0,3.04951446]
[1625564008614,0.48115088,34170.0,34169.0,2.025]
[1625564009966,0.48115088,34170.0,34169.0,2.084]
[1625564010066,0.48115088,34170.0,34169.0,2.025]
[1625564010618,0.48115088,34170.0,34169.0,2.084]
[1625564011878,0.48115088,34170.0,34169.0,2.284]
[1625564012287,0.48115088,34170.0,34169.0,2.62836821]
[1625564012625,0.48115088,34170.0,34169.0,2.28745898]
[1625564012727,0.24057544,34174.0,34169.0,2.28745898]
[1625564012825,0.24057544,34180.0,34169.0,2.28745898]
[1625564012926,0.24057544,34180.0,34169.0,2.37575898]
[1625564013026,0.24057544,34180.0,34172.0,0.34089346]
[1625564013125,0.24057544,34180.0,34172.0,0.39989346]
[1625564013226,0.24057544,34180.0,34172.0,0.45889346]
[1625564013326,0.24057544,34180.0,34173.0,0.00345867]
[1625564013429,0.24057544,34180.0,34179.0,0.48115088]
[1625564013529,0.24057544,34180.0,34179.0,0.54015088]
[1625564013626,0.24057544,34180.0,34179.0,0.91835088]
[1625564013880,0.24057544,34180.0,34179.0,1.11835088]
[1625564014181,0.24057544,34180.0,34179.0,0.91835088]
[1625564014730,0.24057544,34180.0,34175.0,0.5220276]
[1625564014836,0.35857544,34180.0,34175.0,0.5220276]
[1625564014936,0.58301544,34180.0,34175.0,0.5220276]
[1625564015032,0.58301544,34180.0,34174.0,0.34090827]
[1625564015134,0.64201544,34180.0,34174.0,0.34090827]
[1625564015433,0.72172632,34175.0,34174.0,0.34090827]
[1625564015532,0.78072632,34175.0,34174.0,0.34090827]
[1625564015632,0.78072632,34175.0,34173.0,0.00345867]
[1625564015732,0.83972632,34175.0,34173.0,0.00345867]
[1625564016435,0.78072632,34175.0,34173.0,0.00345867]
[1625564016635,0.83972632,34175.0,34173.0,0.00345867]
[1625564020151,0.83972632,34175.0,34174.0,0.00345934]
[1625564021551,0.83972632,34175.0,34169.0,0.0034593]
[1625564021754,0.83972632,34175.0,34174.0,0.00345924]
[1625564021854,0.83972632,34175.0,34174.0,0.26741924]
[1625564022756,0.78072632,34175.0,34174.0,0.26741924]
[1625564023357,0.72172632,34175.0,34174.0,0.26741924]
[1625564024360,0.78072632,34175.0,34174.0,0.26741924]
[1625564024576,0.83972632,34175.0,34174.0,0.00345924]
[1625564024962,0.83972632,34175.0,34173.0,0.00345924]
[1625564025063,1.07247632,34175.0,34173.0,0.00345924]
[1625564025161,1.07247632,34175.0,34174.0,0.00345935]
[1625564025463,1.07247632,34175.0,34169.0,0.00345939]
[1625564025562,0.48115088,34170.0,34169.0,0.00345939]
[1625564025762,0.59915088,34170.0,34169.0,0.00345939]
[1625564027313,0.59915088,34170.0,34165.0,0.00345987]
[1625564027514,0.48115088,34166.0,34165.0,0.00345987]
[1625564027614,0.72731088,34166.0,34165.0,0.00345987]
[1625564027714,0.84531088,34166.0,34165.0,0.00345987]
[1625564029615,0.78631088,34166.0,34165.0,0.00345987]
[1625564029716,0.59915088,34166.0,34165.0,0.00345987]
[1625564029917,0.54015088,34166.0,34165.0,0.00345987]
[1625564030934,0.48115088,34166.0,34165.0,0.00345987]
[1625564031371,0.48115088,34166.0,34165.0,0.40370044]
[1625564031470,0.48115088,34166.0,34165.0,0.41234843]
[1625564031571,0.48115088,34166.0,34165.0,0.59392387]
[1625564031677,0.48115088,34166.0,34165.0,0.3116833]
[1625564032422,0.48115088,34166.0,34165.0,1.50595732]
[1625564032823,0.48115088,34166.0,34165.0,0.3116833]
[1625564033175,0.48115088,34166.0,34165.0,1.5067857]
[1625564033475,0.48115088,34166.0,34165.0,6.1871857]
[1625564035028,0.48115088,34166.0,34165.0,6.1281857]
[1625564035234,0.48115088,34166.0,34165.0,6.11953771]
[1625564036381,0.48115088,34166.0,34165.0,6.80327827]
[1625564036836,0.48115088,34166.0,34165.0,5.60817587]
[1625564038033,0.48115088,34166.0,34165.0,6.80535693]
[1625564038132,0.48115088,34166.0,34165.0,6.86435693]
[1625564038584,0.48115088,34166.0,34165.0,6.92335693]
[1625564038702,0.48115088,34166.0,34165.0,2.13360453]
[1625564038703,0.89379088,34166.0,34165.0,2.13360453]
[1625564038885,0.89379088,34166.0,34165.0,2.12495693]
[1625564038986,0.89379088,34166.0,34165.0,0.24403531]
[1625564041588,0.89379088,34166.0,34165.0,0.00345987]
[1625564041991,0.83479088,34166.0,34165.0,0.00345987]
[1625564042288,0.89379088,34166.0,34165.0,0.00345987]
[1625564042938,0.54015088,34166.0,34165.0,0.00345987]
[1625564043342,0.59915088,34166.0,34165.0,0.00345987]
[1625564043444,0.54015088,34166.0,34165.0,0.00345987]
[1625564043543,0.54015088,34166.0,34165.0,0.1746028]
[1625564043848,0.59915088,34166.0,34165.0,0.1746028]
[1625564043946,0.59915088,34166.0,34165.0,0.00345987]
[1625564044246,0.59915088,34166.0,34165.0,0.68836383]
[1625564044346,0.54015088,34166.0,34165.0,1.00062383]
[1625564044947,0.54015088,34166.0,34165.0,2.02794829]
[1625564045448,0.85185088,34166.0,34165.0,1.71568829]
[1625564045849,0.85185088,34166.0,34165.0,0.17483906]
[1625564046703,0.85185088,34166.0,34165.0,0.00345987]
[1625564047804,0.85185088,34166.0,34165.0,0.51806058]
[1625564049053,0.59915088,34166.0,34165.0,0.51806058]
[1625564049154,0.59915088,34166.0,34165.0,0.34652701]
[1625564049461,0.59915088,34166.0,34165.0,0.51805887]
[1625564049757,0.59915088,34166.0,34165.0,0.00345987]
[1625564050166,0.59915088,34166.0,34165.0,0.69019415]
[1625564051057,0.59915088,34166.0,34165.0,1.72027999]
[1625564052160,0.54015088,34166.0,34165.0,1.72027999]
[1625564052360,0.59915088,34166.0,34165.0,1.72027999]
[1625564052559,0.54015088,34166.0,34165.0,1.72027999]
[1625564052765,0.54015088,34166.0,34165.0,2.92352833]
[1625564053062,0.59915088,34166.0,34165.0,2.92352833]
[1625564053313,0.54015088,34166.0,34165.0,2.92352833]
[1625564053514,0.54015088,34166.0,34165.0,4.30012094]
[1625564055266,0.59915088,34166.0,34165.0,4.30012094]
[1625564055917,0.59915088,34166.0,34165.0,0.00345987]
[1625564056117,0.54015088,34166.0,34165.0,0.00345987]
[1625564056218,0.54015088,34166.0,34163.0,0.00345972]
[1625564056318,0.54015088,34166.0,34165.0,1.72212564]
[1625564056417,0.54015088,34166.0,34165.0,4.30877382]
[1625564057423,0.59915088,34166.0,34165.0,4.30877382]
[1625564057625,0.54015088,34166.0,34165.0,4.30877382]
[1625564058628,0.54015088,34166.0,34165.0,4.31788413]
[1625564059326,0.54015088,34166.0,34165.0,5.86802236]
[1625564059829,0.54015088,34166.0,34165.0,5.85891205]
[1625564059981,0.54015088,34166.0,34165.0,4.30877382]
[1625564060335,0.54015088,34166.0,34165.0,4.31788463]
[1625564060982,0.48115088,34166.0,34165.0,5.86810831]
[1625564061082,0.54015088,34166.0,34165.0,5.86810831]
[1625564061182,0.48115088,34166.0,34165.0,5.86810831]
[1625564061483,0.54015088,34166.0,34165.0,5.86810831]
[1625564061583,0.48115088,34166.0,34165.0,5.86810831]
[1625564061685,0.54015088,34166.0,34165.0,5.86810831]
[1625564061986,0.54015088,34166.0,34165.0,4.31788463]
[1625564062434,0.54015088,34166.0,34165.0,5.86813914]
[1625564062686,0.54015088,34166.0,34165.0,4.31788463]
[1625564063135,0.48115088,34166.0,34165.0,4.31788463]
[1625564063336,0.48115088,34166.0,34165.0,5.86807629]
[1625564063788,0.54015088,34166.0,34165.0,5.86807629]
[1625564064588,0.48115088,34166.0,34165.0,5.86807629]
[1625564064790,0.48115088,34166.0,34165.0,6.10818629]
[1625564066193,0.48115088,34166.0,34165.0,6.62496249]
[1625564066594,0.48115088,34166.0,34165.0,1.79376138]
[1625564066793,0.48115088,34166.0,34165.0,1.80287381]
[1625564067195,0.48115088,34166.0,34165.0,6.62603707]
[1625564067446,0.48115088,34166.0,34165.0,6.68503707]
[1625564067646,0.48115088,34166.0,34165.0,6.69368427]
[1625564067746,0.001,34167.0,34165.0,6.69368427]
[1625564067846,0.001,34167.0,34165.0,8.41643521]
[1625564067948,0.001,34167.0,34165.0,8.91643521]
[1625564068047,0.001,34167.0,34166.0,0.49026274]
[1625564068145,0.001,34167.0,34166.0,0.56136797]
[1625564068245,0.001,34167.0,34166.0,0.50236797]
[1625564068499,0.001,34167.0,34166.0,8.65805436]
[1625564069098,0.002,34172.0,34166.0,8.65805436]
[1625564069297,0.002,34172.0,34167.0,0.00911054]
[1625564069499,0.061,34172.0,34167.0,0.01256909]
[1625564069600,0.12,34172.0,34167.0,0.01256909]
[1625564069698,0.12,34172.0,34171.0,6.37352376]
[1625564069998,0.12,34172.0,34171.0,6.85467464]
[1625564070098,0.12,34172.0,34171.0,6.85813348]
[1625564070801,0.29212423,34172.0,34171.0,5.30781689]
[1625564071201,0.23312423,34172.0,34171.0,5.30781689]
[1625564071402,1.26420488,34172.0,34171.0,3.9297577]
[1625564071502,1.20520488,34172.0,34171.0,3.9297577]
[1625564071601,1.26420488,34172.0,34171.0,3.9297577]
[1625564071703,1.20520488,34172.0,34171.0,3.9297577]
[1625564071803,1.20520488,34172.0,34171.0,5.3078802]
[1625564071804,0.51768378,34172.0,34171.0,5.3078802]
[1625564072004,0.57668378,34172.0,34171.0,5.3078802]
[1625564072103,0.63601245,34172.0,34171.0,5.3078802]
[1625564072704,0.97921682,34172.0,34171.0,5.3078802]
[1625564073107,0.63572019,34172.0,34171.0,9.7834802]
[1625564073807,0.97967785,34172.0,34171.0,10.0977802]
[1625564073958,0.97967785,34172.0,34171.0,5.6221802]
[1625564074059,0.97967785,34172.0,34171.0,5.31699748]
[1625564074362,0.63599247,34172.0,34171.0,5.31699748]
[1625564074483,0.63599247,34172.0,34171.0,5.3078802]
[1625564074768,2.35234113,34172.0,34171.0,5.3078802]
[1625564074872,2.35234113,34172.0,34171.0,3.9297577]
[1625564074873,3.55426533,34172.0,34171.0,3.9297577]
[1625564075160,4.93070434,34172.0,34171.0,2.72395591]
[1625564075265,5.18054434,34172.0,34171.0,2.72395591]
[1625564076011,5.42111978,34172.0,34171.0,2.72395591]
[1625564076565,5.42111978,34172.0,34171.0,2.24280503]
[1625564077167,5.42111978,34172.0,34171.0,1.20926064]
[1625564077265,5.42111978,34172.0,34171.0,0.72906064]
[1625564077367,5.36211978,34172.0,34171.0,0.52686064]
[1625564077465,5.30311978,34172.0,34170.0,1.00209281]
[1625564077599,5.30311978,34172.0,34171.0,0.49600644]
[1625564077601,5.31916208,34172.0,34171.0,0.49600644]
[1625564077673,0.00399356,34171.0,34169.0,0.04888934]
[1625564077769,0.059,34170.0,34169.0,0.04888934]
[1625564077866,0.00399356,34171.0,34167.0,1.19553772]
[1625564077972,0.06299356,34171.0,34165.0,1.30578386]
[1625564078067,0.72172632,34166.0,34165.0,1.30578386]
[1625564078171,0.78072632,34166.0,34165.0,1.19168386]
[1625564078267,0.78072632,34166.0,34165.0,1.01538386]
[1625564078368,0.79679466,34166.0,34165.0,0.94978386]
[1625564078667,0.79679466,34166.0,34149.0,1.55184596]
[1625564078768,5.64399466,34166.0,34149.0,1.55184596]
[1625564078917,0.0160689,34165.0,34149.0,1.55184596]
[1625564079118,0.0160689,34165.0,34145.0,0.9656]
[1625564079119,1.54118728,34162.0,34145.0,0.9656]
[1625564079267,1.60018728,34162.0,34145.0,0.9656]
[1625564079367,1.94660728,34162.0,34145.0,0.9656]
[1625564080017,2.18718272,34162.0,34145.0,0.9656]
[1625564080922,2.18718272,34162.0,34161.0,0.7158]
[1625564081022,2.18718272,34162.0,34145.0,0.9656]
[1625564081673,1.53674773,34161.0,34145.0,0.9656]
[1625564081773,0.056,34153.0,34145.0,0.9656]
[1625564081872,0.115,34153.0,34145.0,0.9656]
[1625564081972,0.42695,34153.0,34145.0,0.9656]
[1625564082074,0.72172632,34151.0,34145.0,0.9656]
[1625564082173,0.83972632,34151.0,34145.0,0.9656]
[1625564084132,0.83972632,34151.0,34145.0,0.9616]
[1625564086081,0.24057544,34146.0,34145.0,0.9616]
[1625564086199,0.46744544,34146.0,34137.0,1.78707407]
[1625564086305,0.46744544,34146.0,34137.0,0.24057544]
[1625564086306,0.58544544,34146.0,34137.0,0.24057544]
[1625564086404,0.58544544,34146.0,34134.0,1.78713097]
[1625564086483,0.58544544,34146.0,34134.0,1.54655553]
[1625564086888,3.6283,34143.0,34134.0,1.54655553]
[1625564086984,3.6873,34143.0,34134.0,1.54655553]
[1625564087185,3.7463,34143.0,34134.0,1.54655553]
[1625564087385,3.7463,34143.0,34129.0,0.24057544]
[1625564087837,4.2463,34143.0,34129.0,0.24057544]
[1625564087935,4.2463,34143.0,34123.0,1.54681049]
[1625564088135,0.61785826,34124.0,34123.0,1.54681049]
[1625564088235,0.97470826,34124.0,34119.0,1.78428011]
[1625564088886,0.97470826,34124.0,34120.0,0.00908778]
[1625564088985,1.03370826,34124.0,34120.0,0.00908778]
[1625564089086,1.03370826,34124.0,34115.0,2.77216451]
[1625564089187,0.73585826,34124.0,34115.0,2.77216451]
[1625564089287,0.67685826,34124.0,34115.0,2.77216451]
[1625564089388,0.67685826,34124.0,34115.0,2.83116451]
[1625564089487,0.67685826,34124.0,34116.0,0.00909075]
[1625564089588,0.67685826,34124.0,34116.0,0.06809075]
[1625564089688,0.67685826,34124.0,34116.0,0.059]
[1625564089789,0.73585826,34124.0,34116.0,0.059]
[1625564089889,0.73585826,34124.0,34115.0,1.22817544]
[1625564089990,1.07907826,34124.0,34115.0,1.22817544]
[1625564090088,0.48115088,34116.0,34115.0,1.22817544]
[1625564090190,0.74995088,34116.0,34115.0,1.22817544]
[1625564090490,0.80895088,34116.0,34115.0,1.22817544]
[1625564091692,0.80895088,34116.0,34115.0,0.9876]
[1625564091893,0.86795088,34116.0,34115.0,0.9876]
[1625564092194,1.10852632,34116.0,34115.0,0.9876]
[1625564093096,1.10852632,34116.0,34115.0,0.7848]
[1625564093196,1.10852632,34116.0,34104.0,0.9431]
[1625564093297,0.059,34115.0,34104.0,0.9431]
[1625564093598,0.118,34115.0,34104.0,0.9431]
[1625564093997,0.059,34115.0,34104.0,0.8841]
[1625564094201,0.48115088,34105.0,34104.0,0.8841]
[1625564094399,0.87227088,34105.0,34104.0,0.4527]
[1625564094901,0.87227088,34105.0,34090.0,1.42278504]
[1625564095002,0.81327088,34105.0,34090.0,1.36578504]
[1625564095149,0.87227088,34105.0,34090.0,1.36578504]
[1625564095449,0.81327088,34105.0,34090.0,1.36578504]
[1625564095549,0.87227088,34105.0,34097.0,0.17617544]
[1625564095651,0.87227088,34105.0,34086.0,1.36572376]
[1625564095850,0.87227088,34105.0,34086.0,1.42472376]
[1625564096150,0.87227088,34105.0,34090.0,0.24057544]
[1625564096151,0.24057544,34091.0,34090.0,0.24057544]
[1625564096249,0.64061544,34091.0,34090.0,0.24057544]
[1625564096349,0.69961544,34091.0,34090.0,0.24057544]
[1625564096550,0.58161544,34091.0,34090.0,0.24057544]
[1625564096651,0.58161544,34091.0,34090.0,0.35857544]
[1625564097051,0.24057544,34094.0,34090.0,0.35857544]
[1625564097155,0.24057544,34105.0,34090.0,0.57869544]
[1625564097251,0.35857544,34105.0,34090.0,0.51969544]
[1625564097352,0.29957544,34105.0,34090.0,0.51969544]
[1625564097504,0.35857544,34105.0,34090.0,0.51969544]
[1625564097604,0.29957544,34105.0,34090.0,0.57869544]
[1625564097704,0.35857544,34105.0,34090.0,0.57869544]
[1625564097903,0.29957544,34105.0,34090.0,0.57869544]
[1625564098105,0.29957544,34105.0,34090.0,0.51969544]
[1625564098209,0.35857544,34105.0,34102.0,0.24057544]
[1625564098804,0.35857544,34105.0,34090.0,0.24057544]
[1625564098904,0.35857544,34105.0,34090.0,0.29957544]
[1625564099004,0.35857544,34105.0,34090.0,0.35857544]
[1625564100206,0.24057544,34097.0,34096.0,0.24057544]
[1625564100706,0.24057544,34097.0,34096.0,0.35857544]
[1625564100908,0.24057544,34105.0,34096.0,0.35857544]
[1625564101011,0.24057544,34105.0,34096.0,0.65405544]
[1625564101107,1.4904123,34126.0,34096.0,0.65405544]
[1625564101208,1.21824637,34121.0,34096.0,0.65405544]
[1625564101309,0.118,34121.0,34096.0,0.65405544]
[1625564101809,0.118,34121.0,34096.0,0.59505544]
[1625564102010,0.118,34121.0,34096.0,0.53605544]
[1625564102109,0.118,34121.0,34096.0,0.24057544]
[1625564102210,0.24057544,34103.0,34102.0,0.24057544]
[1625564102410,0.29957544,34103.0,34102.0,0.24057544]
[1625564102509,0.35857544,34103.0,34102.0,0.24057544]
[1625564102760,0.29957544,34103.0,34102.0,0.24057544]
[1625564102861,0.35857544,34103.0,34096.0,0.24057544]
[1625564103063,0.29957544,34103.0,34096.0,0.24057544]
[1625564103166,0.29957544,34103.0,34096.0,0.29957544]
[1625564103274,0.29957544,34103.0,34096.0,0.35857544]
[1625564103275,0.24057544,34103.0,34096.0,0.35857544]
[1625564104011,0.29957544,34103.0,34096.0,0.24057544]
[1625564104112,0.35857544,34103.0,34096.0,0.24057544]
[1625564104212,0.24057544,34097.0,34096.0,0.24057544]
[1625564104311,0.50155544,34097.0,34096.0,0.24057544]
[1625564104612,0.56055544,34097.0,34096.0,0.24057544]
[1625564105812,0.56055544,34097.0,34092.0,0.24057544]
[1625564105914,0.56055544,34097.0,34092.0,0.29957544]
[1625564106213,0.24057544,34093.0,34092.0,0.29957544]
[1625564106314,0.24057544,34093.0,34092.0,0.24057544]
[1625564106415,0.29957544,34093.0,34092.0,0.24057544]
[1625564106517,0.35857544,34093.0,34092.0,0.24057544]
[1625564106766,0.35857544,34093.0,34084.0,0.24057544]
[1625564107068,0.29957544,34093.0,34084.0,0.35857544]
[1625564107166,0.24057544,34093.0,34084.0,0.35857544]
[1625564107367,0.29957544,34093.0,34084.0,0.29957544]
[1625564107466,0.35857544,34093.0,34084.0,0.24057544]
[1625564107667,0.35857544,34093.0,34084.0,0.29957544]
[1625564107773,0.35857544,34093.0,34084.0,0.24057544]
[1625564108268,0.48115088,34085.0,34084.0,0.24057544]
[1625564109523,0.76130088,34085.0,34084.0,0.24057544]
[1625564109673,0.71130088,34085.0,34084.0,0.24057544]
[1625564109872,0.71130088,34085.0,34081.0,0.9104]
[1625564110172,0.77030088,34085.0,34081.0,0.9104]
[1625564110273,0.48115088,34082.0,34081.0,0.9104]
[1625564110473,0.54015088,34082.0,34081.0,0.9104]
[1625564111127,0.59915088,34082.0,34081.0,0.9104]
[1625564111223,0.59915088,34082.0,34067.0,0.24057544]
[1625564111426,0.59915088,34082.0,34067.0,0.04957544]
[1625564111527,0.59915088,34082.0,34063.0,0.07115088]
[1625564111632,0.59915088,34082.0,34056.0,0.9718]
[1625564111752,0.059,34067.0,34056.0,0.9718]
[1625564111830,0.059,34067.0,34045.0,1.01176635]
[1625564111831,0.31265,34067.0,34045.0,1.01176635]
[1625564111936,0.37165,34067.0,34045.0,1.01176635]
[1625564112134,0.37165,34067.0,34012.0,0.2929]
[1625564112135,0.37165,34067.0,34037.0,0.057]
[1625564112228,0.37165,34067.0,34027.0,1.01203642]
[1625564112330,0.72172632,34043.0,34038.0,0.24057544]
[1625564112433,1.06684632,34043.0,34034.0,0.24057544]
[1625564112643,1.06684632,34043.0,34031.0,0.24057544]
[1625564112747,1.12584632,34043.0,34034.0,0.059]
[1625564113030,1.18484632,34043.0,34034.0,0.059]
[1625564113285,1.12584632,34043.0,34034.0,0.059]
[1625564113580,1.06684632,34043.0,34034.0,0.059]
[1625564113680,1.12584632,34043.0,34034.0,0.059]
[1625564113980,1.06684632,34043.0,34034.0,0.059]
[1625564114081,1.12584632,34043.0,34031.0,0.24057544]
[1625564114182,1.06684632,34043.0,34034.0,0.059]
[1625564114282,1.06684632,34043.0,34031.0,0.29957544]
[1625564114283,0.48115088,34035.0,34031.0,0.48115088]
[1625564114383,0.76008088,34035.0,34031.0,0.48115088]
[1625564114484,0.76008088,34035.0,34031.0,0.54015088]
[1625564114585,0.76008088,34035.0,34031.0,0.48115088]
[1625564114786,0.48115088,34035.0,34031.0,0.48115088]
[1625564114884,0.48115088,34043.0,34031.0,0.48115088]
[1625564114987,0.54015088,34043.0,34031.0,0.48115088]
[1625564115086,0.54015088,34043.0,34031.0,0.54015088]
[1625564115186,0.48115088,34043.0,34031.0,0.54015088]
[1625564116191,0.48115088,34043.0,34031.0,0.059]
[1625564116290,0.24057544,34035.0,34033.0,0.24057544]
[1625564116489,0.24057544,34035.0,34033.0,0.29957544]
[1625564116639,0.49931544,34035.0,34033.0,0.29957544]
[1625564116847,0.49931544,34035.0,34033.0,0.24057544]
[1625564117044,0.49931544,34035.0,34029.0,0.9277]
[1625564117241,0.49931544,34035.0,34029.0,0.9867]
[1625564117380,0.49931544,34035.0,34029.0,0.9277]
[1625564117457,0.55831544,34035.0,34029.0,0.9277]
[1625564117649,0.55831544,34035.0,34024.0,0.24057544]
[1625564117741,0.55831544,34035.0,33998.0,0.057]
[1625564117840,0.61731544,34035.0,33991.0,0.2929]
[1625564118041,0.61731544,34035.0,33999.0,0.00347309]
[1625564118242,0.61731544,34035.0,33999.0,0.06247309]
[1625564118243,0.55831544,34035.0,33999.0,0.06247309]
[1625564118341,0.24057544,34023.0,34022.0,0.24057544]
[1625564118547,0.24057544,34023.0,34018.0,0.24057544]
[1625564118645,0.24057544,34023.0,34015.0,0.24057544]
[1625564118745,0.24057544,34023.0,34018.0,0.059]
[1625564119244,0.24057544,34023.0,33993.0,0.2]
[1625564119444,0.24057544,34023.0,33993.0,0.259]
[1625564119646,0.29957544,34023.0,33994.0,0.00347331]
[1625564119845,0.29957544,34023.0,33994.0,0.06247331]
[1625564119946,0.24057544,34023.0,33994.0,0.06247331]
[1625564120155,0.24057544,34023.0,33994.0,0.059]
[1625564120348,0.24057544,34009.0,34008.0,0.24057544]
[1625564120447,0.24057544,34009.0,34008.0,0.29957544]
[1625564120547,0.24057544,34009.0,34008.0,0.35857544]
[1625564120747,0.24057544,34020.0,34008.0,0.35857544]
[1625564121347,0.24057544,34020.0,34009.0,0.2]
[1625564121448,0.24057544,34020.0,34009.0,0.318]
[1625564121547,0.24057544,34020.0,34009.0,0.118]
[1625564122298,0.24057544,34020.0,34014.0,0.24057544]
[1625564122398,0.24057544,34020.0,34014.0,0.35857544]
[1625564123000,0.24057544,34024.0,34014.0,0.35857544]
[1625564123100,0.24057544,34024.0,34020.0,0.059]
[1625564123199,0.24057544,34024.0,34020.0,0.36961]
[1625564123400,0.057,34051.0,34020.0,0.36961]
[1625564123498,0.118,34051.0,34020.0,0.36961]
[1625564123700,0.059,34051.0,34020.0,0.36961]
[1625564123802,0.057,34067.0,34020.0,0.36961]
[1625564123902,0.059,34051.0,34020.0,0.36961]
[1625564124004,0.118,34051.0,34020.0,0.36961]
[1625564124103,0.118,34051.0,34021.0,0.9494]
[1625564124202,4.9287,34070.0,34021.0,0.9494]
[1625564124303,5.0467,34070.0,34021.0,1.0674]
[1625564124402,0.24057544,34043.0,34042.0,0.24057544]
[1625564124501,0.24057544,34043.0,34042.0,0.67921544]
[1625564124802,0.24057544,34043.0,34042.0,0.43864]
[1625564125304,0.24057544,34043.0,34042.0,0.37964]
[1625564125856,0.24057544,34043.0,34042.0,0.059]
[1625564125956,0.24057544,34043.0,34039.0,0.24057544]
[1625564126055,0.24057544,34043.0,34042.0,0.059]
[1625564126358,0.24057544,34043.0,34039.0,0.48115088]
[1625564126456,0.24057544,34043.0,34039.0,0.54015088]
[1625564126560,0.51451544,34043.0,34039.0,0.59915088]
[1625564126658,0.51451544,34043.0,34039.0,0.48115088]
[1625564126959,0.51451544,34043.0,34039.0,0.54015088]
[1625564127157,0.51451544,34043.0,34039.0,0.59915088]
[1625564127809,0.24057544,34043.0,34039.0,0.59915088]
[1625564127912,0.24057544,34047.0,34039.0,0.59915088]
[1625564128010,0.24057544,34050.0,34039.0,0.59915088]
[1625564128411,0.24057544,34050.0,34049.0,0.48115088]
[1625564128512,0.24057544,34050.0,34049.0,0.59915088]
[1625564128712,0.24057544,34050.0,34049.0,0.35857544]
[1625564129412,0.24057544,34054.0,34049.0,0.65301544]
[1625564129512,0.24057544,34060.0,34049.0,0.65301544]
[1625564130364,0.24057544,34060.0,34059.0,0.48115088]
[1625564130462,0.24057544,34060.0,34059.0,0.54015088]
[1625564130664,0.24057544,34060.0,34059.0,0.48115088]
[1625564131064,0.29957544,34060.0,34059.0,0.48115088]
[1625564131165,0.24057544,34060.0,34059.0,0.48115088]
[1625564131363,0.29957544,34060.0,34059.0,0.48115088]
[1625564131465,0.29957544,34060.0,34053.0,0.24057544]
[1625564131568,0.62908544,34060.0,34031.0,0.057]
[1625564131665,0.62908544,34060.0,34031.0,0.118]
[1625564131965,0.62908544,34060.0,34031.0,0.059]
[1625564132266,0.62908544,34060.0,34031.0,0.118]
[1625564132365,0.62908544,34060.0,34031.0,0.059]
[1625564132468,0.24057544,34045.0,34044.0,0.24057544]
[1625564132566,0.58274544,34045.0,34044.0,0.29957544]
[1625564133118,0.34217,34045.0,34044.0,0.29957544]
[1625564133244,0.34217,34045.0,34044.0,0.35857544]
[1625564133636,0.24057544,34048.0,34044.0,0.35857544]
[1625564133728,0.24057544,34048.0,34044.0,0.29957544]
[1625564133820,0.24057544,34048.0,34044.0,0.35857544]
[1625564134118,0.24057544,34060.0,34044.0,0.35857544]
[1625564134322,0.24057544,34060.0,34044.0,0.64063544]
[1625564134424,0.24057544,34060.0,34059.0,0.24057544]
[1625564134562,0.24057544,34062.0,34059.0,0.24057544]
[1625564134563,0.24057544,34062.0,34059.0,0.55622544]
[1625564134620,0.24057544,34062.0,34059.0,0.61522544]
[1625564136723,0.24057544,34066.0,34059.0,0.61522544]
[1625564136923,0.24057544,34075.0,34059.0,0.61522544]
[1625564138427,0.29957544,34075.0,34072.0,0.24057544]
[1625564138528,0.24057544,34075.0,34072.0,0.24057544]
[1625564138730,0.24057544,34075.0,34072.0,0.29957544]
[1625564138832,0.24057544,34075.0,34072.0,0.24057544]
[1625564139034,0.24057544,34075.0,34069.0,0.24057544]
[1625564139130,0.24057544,34075.0,34072.0,0.059]
[1625564140131,0.24057544,34075.0,34069.0,0.24057544]
[1625564140230,0.24057544,34075.0,34072.0,0.059]
[1625564140331,0.24057544,34075.0,34069.0,0.059]
[1625564140429,0.24057544,34075.0,34072.0,0.059]
[1625564140880,0.24057544,34075.0,34072.0,0.118]
[1625564141081,0.24057544,34075.0,34072.0,0.059]
[1625564141283,0.24057544,34075.0,34070.0,0.24057544]
[1625564141481,0.24057544,34075.0,34070.0,0.29957544]
[1625564141588,0.24057544,34075.0,34071.0,0.00346977]
[1625564141681,0.24057544,34075.0,34071.0,0.06246977]
[1625564141782,0.24057544,34075.0,34071.0,0.12146977]
[1625564141883,0.24057544,34075.0,34071.0,0.06246977]
[1625564141983,0.24057544,34075.0,34071.0,0.12146977]
[1625564142183,0.24057544,34075.0,34072.0,0.00346936]
[1625564142382,0.24057544,34075.0,34072.0,0.12146936]
[1625564142483,0.24057544,34075.0,34074.0,0.24057544]
[1625564142584,0.24057544,34075.0,34074.0,0.29957544]